bitfinex-derivatives/quotes_SOLF0:USTF0_20250411
["timestamp","ask_amount","ask_price","bid_price","bid_amount"]
[1744344013690,0.0554559,115.41,115.4,19.65474113]
[1744344014087,0.0554559,115.41,115.4,28.15806595]
[1744344017900,33.8,115.44,115.4,19.48666595]
[1744344018094,33.8,115.44,115.42,7.00557482]
[1744344018293,33.8,115.44,115.43,12.48109113]
[1744344022086,8.72919685,115.45,115.43,12.48109113]
[1744344022286,8.72919685,115.45,115.42,15.73232279]
[1744344022497,8.72919685,115.45,115.43,12.44751714]
[1744344022796,8.72919685,115.45,115.42,15.73232279]
[1744344023098,8.72919685,115.45,115.43,12.44887848]
[1744344023296,8.72919685,115.45,115.42,15.73232279]
[1744344023497,8.72919685,115.45,115.43,12.44741788]
[1744344023705,8.72919685,115.45,115.42,15.73232279]
[1744344023897,8.72919685,115.45,115.43,12.44612733]
[1744344024098,0.06149685,115.45,115.43,8.6691]
[1744344025000,8.72909685,115.45,115.43,8.6691]
[1744344025301,0.06149685,115.45,115.42,0.05744797]
[1744344025499,8.6684,115.44,115.42,0.05744797]
[1744344026496,8.72939685,115.45,115.42,0.05744797]
[1744344026901,8.72939685,115.45,115.43,8.47915276]
[1744344027102,8.72939685,115.45,115.42,0.05744797]
[1744344027302,8.72939685,115.45,115.43,8.47893822]
[1744344027600,8.72939685,115.45,115.42,8.72694797]
[1744344027900,8.72939685,115.45,115.43,8.47816748]
[1744344028090,8.72939685,115.45,115.42,8.72694797]
[1744344028289,8.72939685,115.45,115.43,8.47800848]
[1744344028490,8.72939685,115.45,115.42,8.72694797]
[1744344028692,8.72939685,115.45,115.43,17.14627419]
[1744344028902,8.72939685,115.45,115.43,8.6691]
[1744344029090,0.06149685,115.45,115.43,8.6691]
[1744344029295,0.06149685,115.45,115.42,8.72684797]
[1744344029698,8.72979685,115.45,115.43,8.47495337]
[1744344029893,8.72979685,115.45,115.42,8.72684797]
[1744344030099,8.72979685,115.45,115.43,8.47494554]
[1744344030403,8.6684,115.44,115.42,8.72684797]
[1744344031301,8.6691,115.43,115.42,0.05744797]
[1744344031803,8.6691,115.43,115.42,8.53502732]
[1744344032306,8.6691,115.43,115.42,0.05744797]
[1744344035000,42.4086,115.44,115.42,8.53756485]
[1744344035308,42.4086,115.44,115.42,0.05744797]
[1744344042207,33.74,115.44,115.42,0.05744797]
[1744344042409,33.74,115.44,115.43,7.00557482]
[1744344042603,33.74,115.44,115.43,15.47232412]
[1744344042804,33.74,115.44,115.43,24.14142412]
[1744344044710,33.74,115.44,115.43,15.67467482]
[1744344044910,33.74,115.44,115.43,17.13988052]
[1744344045109,33.74,115.44,115.43,28.10775798]
[1744344046519,33.74,115.44,115.43,28.10745726]
[1744344047622,0.06149685,115.45,115.43,28.10745726]
[1744344047823,0.06149685,115.45,115.44,28.10648618]
[1744344048015,0.06149685,115.45,115.42,7.06302279]
[1744344048216,8.72909685,115.45,115.43,12.43588458]
[1744344048514,8.72909685,115.45,115.42,8.72694797]
[1744344048821,8.72909685,115.45,115.43,8.47679198]
[1744344049023,8.72909685,115.45,115.42,8.72694797]
[1744344049223,8.72909685,115.45,115.43,8.47817038]
[1744344049423,8.72909685,115.45,115.42,8.72694797]
[1744344049617,8.72909685,115.45,115.43,12.45210711]
[1744344049818,8.72909685,115.45,115.42,8.72694797]
[1744344050024,8.72909685,115.45,115.43,12.45210709]
[1744344050212,8.72909685,115.45,115.42,8.72694797]
[1744344050413,8.72909685,115.45,115.43,12.45281474]
[1744344050623,8.72909685,115.45,115.44,8.48440383]
[1744344050811,8.72909685,115.45,115.43,8.48440383]
[1744344051018,8.72909685,115.45,115.44,8.48440383]
[1744344052129,8.72909685,115.45,115.44,12.45548344]
[1744344053822,0.06149685,115.45,115.44,12.45548344]
[1744344054029,4.4978,115.48,115.44,12.45548344]
[1744344054224,4.4978,115.48,115.45,12.45548344]
[1744344054429,4.4978,115.48,115.43,7.00557482]
[1744344054722,4.4978,115.48,115.44,12.47170483]
[1744344054926,4.4978,115.48,115.45,12.47170483]
[1744344055127,4.4978,115.48,115.46,8.49728545]
[1744344055322,7.00557482,115.47,115.45,0.05904967]
[1744344055533,33.74,115.46,115.45,0.05904967]
[1744344055830,33.74,115.46,115.45,8.56516597]
[1744344056135,33.74,115.46,115.45,0.05904967]
[1744344056428,42.4068,115.46,115.45,12.54976106]
[1744344056618,42.4068,115.46,115.45,12.54952109]
[1744344056819,33.74,115.46,115.45,12.54952109]
[1744344058032,0.05713263,115.47,115.45,12.54952109]
[1744344058329,0.05713263,115.47,115.46,12.49047142]
[1744344059335,0.05713263,115.47,115.46,21.15727142]
[1744344062736,0.05713263,115.47,115.46,12.49047142]
[1744344063735,0.05713263,115.47,115.46,21.15727142]
[1744344065836,0.05713263,115.47,115.46,12.49047142]
[1744344067340,0.05713263,115.47,115.46,21.15727142]
[1744344068438,0.05713263,115.47,115.46,12.49047142]
[1744344068934,8.72323263,115.47,115.46,8.51066416]
[1744344069239,8.72323263,115.47,115.45,0.05904967]
[1744344070237,0.05713263,115.47,115.45,8.72654967]
[1744344070737,8.72393263,115.47,115.45,0.05904967]
[1744344070938,0.05713263,115.47,115.45,0.05904967]
[1744344071538,0.05713263,115.47,115.45,8.72664967]
[1744344072037,8.72323263,115.47,115.45,0.05904967]
[1744344076939,8.72323263,115.47,115.45,8.72664967]
[1744344077242,0.05713263,115.47,115.45,8.72664967]
[1744344078244,0.05713263,115.47,115.46,8.48049852]
[1744344078443,0.05713263,115.47,115.46,8.48047865]
[1744344079142,0.05713263,115.47,115.45,8.72664967]
[1744344080346,0.05713263,115.47,115.46,8.48267514]
[1744344080644,0.05713263,115.47,115.46,17.15037514]
[1744344080846,0.05713263,115.47,115.46,21.11657572]
[1744344081936,0.05713263,115.47,115.46,21.11621721]
[1744344085248,0.05713263,115.47,115.46,12.44851721]
[1744344086350,0.05713263,115.47,115.46,21.11621721]
[1744344089448,0.05713263,115.47,115.46,12.44851721]
[1744344089752,8.6677,115.46,115.45,0.05904967]
[1744344089950,42.3677,115.46,115.45,0.05904967]
[1744344091144,33.7,115.46,115.42,7.00557482]
[1744344091351,7.00557482,115.45,115.4,21.0746529]
[1744344091549,7.00557482,115.45,115.41,12.21030276]
[1744344091750,8.6696,115.44,115.4,18.9667529]
[1744344091950,8.6696,115.44,115.41,12.21177442]
[1744344092151,8.6696,115.44,115.4,18.9667529]
[1744344092352,8.73522001,115.44,115.41,12.27010401]
[1744344092552,8.6705,115.43,115.41,0.06225596]
[1744344093357,8.73522001,115.44,115.41,8.73365596]
[1744344094857,0.06562001,115.44,115.42,27.87345654]
[1744344095159,0.06562001,115.44,115.42,15.67617482]
[1744344095550,8.73522001,115.44,115.41,15.73923078]
[1744344095756,0.06562001,115.44,115.41,0.06225596]
[1744344095951,8.73522001,115.44,115.41,8.73375596]
[1744344096257,0.06562001,115.44,115.41,0.06225596]
[1744344096658,8.6705,115.43,115.41,0.06225596]
[1744344096958,42.3305,115.43,115.41,0.06225596]
[1744344097352,8.73512001,115.44,115.41,8.73355596]
[1744344097550,0.06562001,115.44,115.41,0.06225596]
[1744344097858,8.73522001,115.44,115.41,8.73305596]
[1744344098058,8.73522001,115.44,115.41,0.06225596]
[1744344098660,8.73522001,115.44,115.42,8.31904465]
[1744344098851,8.73522001,115.44,115.41,0.06225596]
[1744344099158,0.06562001,115.44,115.42,16.98962621]
[1744344099359,0.06562001,115.44,115.42,8.6707]
[1744344099860,0.06562001,115.44,115.41,0.06225596]
[1744344100159,0.06562001,115.44,115.42,15.3229209]
[1744344100362,0.06562001,115.44,115.42,7.00557482]
[1744344101061,0.06562001,115.44,115.42,15.67587482]
[1744344101264,0.06562001,115.44,115.42,7.00557482]
[1744344101862,8.73492001,115.44,115.42,7.00557482]
[1744344102661,8.73492001,115.44,115.41,8.73325596]
[1744344102860,0.06562001,115.44,115.41,0.06225596]
[1744344104466,8.6703,115.43,115.41,0.06225596]
[1744344105468,8.6706,115.42,115.41,0.06225596]
[1744344105658,8.6706,115.42,115.41,8.37528824]
[1744344107868,8.6702,115.43,115.41,8.37528824]
[1744344108169,8.6702,115.43,115.41,0.06225596]
[1744344108970,8.6707,115.42,115.41,0.06225596]
[1744344109268,8.6707,115.42,115.41,8.37385865]
[1744344109464,8.6707,115.42,115.36,8.51356979]
[1744344109465,40.68557482,115.42,115.36,8.51356979]
[1744344109673,7.00557482,115.37,115.33,73.49466559]
[1744344109869,40.68557482,115.37,115.34,12.19717899]
[1744344110063,40.68557482,115.37,115.33,73.49466559]
[1744344110664,8.676,115.35,115.34,0.06448777]
[1744344112467,8.7364979,115.36,115.34,0.06448777]
[1744344112672,7.06647272,115.36,115.34,0.06448777]
[1744344113473,8.676,115.35,115.34,0.06448777]
[1744344116575,8.7364979,115.36,115.34,0.06448777]
[1744344117677,8.676,115.35,115.34,0.06448777]
[1744344118676,8.7364979,115.36,115.34,0.06448777]
[1744344120177,0.0608979,115.36,115.34,8.74108777]
[1744344120374,33.68,115.37,115.34,7.07006259]
[1744344120573,33.68,115.4,115.36,7.00557482]
[1744344120880,42.3526,115.4,115.37,8.6745]
[1744344121574,42.41624585,115.4,115.37,8.73421723]
[1744344121879,0.06364585,115.4,115.38,7.00557482]
[1744344122074,0.06364585,115.4,115.39,7.00557482]
[1744344123080,0.06364585,115.4,115.39,15.67857482]
[1744344123584,33.68,115.43,115.41,8.6713]
[1744344123777,33.68,115.43,115.41,15.67687482]
[1744344124074,33.68,115.43,115.41,7.00557482]
[1744344124279,33.68,115.43,115.4,7.00557482]
[1744344124982,42.41453852,115.43,115.4,15.73902851]
[1744344125787,8.6713,115.42,115.4,7.06712851]
[1744344125984,8.6713,115.42,115.4,0.06155369]
[1744344127079,42.41473852,115.43,115.4,0.06155369]
[1744344128179,42.41473852,115.43,115.4,8.73355369]
[1744344128386,33.74443852,115.43,115.4,15.73912851]
[1744344128887,42.41443852,115.43,115.4,15.73912851]
[1744344131882,8.671,115.42,115.4,7.06712851]
[1744344132081,40.75001334,115.43,115.4,0.06155369]
[1744344132383,8.6715,115.41,115.4,0.06155369]
[1744344139990,15.67707482,115.41,115.4,0.06155369]
[1744344140189,8.674,115.38,115.33,686.64]
[1744344140485,8.674,115.38,115.34,19.17096113]
[1744344140684,8.674,115.38,115.34,7.00557482]
[1744344140888,8.674,115.38,115.35,7.00557482]
[1744344141288,8.73973194,115.38,115.35,15.74145845]
[1744344141493,0.06573194,115.38,115.36,7.00557482]
[1744344141698,33.66,115.39,115.37,7.00557482]
[1744344141988,33.66,115.42,115.38,7.00557482]
[1744344142192,42.3312,115.42,115.38,7.00557482]
[1744344142496,33.66,115.42,115.38,7.00557482]
[1744344142882,0.05560269,115.41,115.4,8.6718]
[1744344145196,0.05560269,115.41,115.39,8.73092001]
[1744344145895,0.05560269,115.41,115.4,8.6722]
[1744344151296,33.66,115.45,115.4,12.15354637]
[1744344151493,33.66,115.45,115.41,8.29537245]
[1744344151698,33.66,115.45,115.39,10.93673587]
[1744344151998,33.66,115.45,115.43,8.6695]
[1744344152401,33.72335063,115.45,115.43,8.73236522]
[1744344152597,33.72335063,115.45,115.43,0.06286522]
[1744344153102,8.6692,115.44,115.43,0.06286522]
[1744344156100,8.6716,115.41,115.36,38.0304]
[1744344156301,8.6716,115.41,115.37,12.16836021]
[1744344156501,8.6716,115.41,115.38,8.6733]
[1744344157209,8.73033081,115.41,115.38,8.73881899]
[1744344158301,36.22792666,115.52,115.4,10.93673587]
[1744344158494,36.22792666,115.52,115.45,10.93673587]
[1744344158803,8.6643,115.51,115.47,8.6666]
[1744344159005,36.22792666,115.52,115.43,44.55673587]
[1744344159194,36.22792666,115.52,115.47,8.667]
[1744344159400,0.06572388,115.49,115.47,8.667]
[1744344159803,0.06572388,115.49,115.47,8.73258538]
[1744344163505,0.06572388,115.49,115.47,0.06558538]
[1744344164805,8.73122388,115.49,115.47,0.06558538]
[1744344165198,0.06572388,115.49,115.47,0.06558538]
[1744344165507,0.06572388,115.49,115.47,8.73248538]
[1744344166699,0.06572388,115.49,115.48,8.6662]
[1744344167397,0.06572388,115.49,115.48,13.00444242]
[1744344168409,0.06572388,115.49,115.48,12.99912497]
[1744344168803,42.2628,115.53,115.5,8.6646]
[1744344169911,42.32525168,115.53,115.5,0.05557861]
[1744344170411,33.66245168,115.53,115.5,0.05557861]
[1744344171110,8.6632,115.52,115.5,0.05557861]
[1744344173310,8.664,115.51,115.5,0.05557861]
[1744344173909,44.59918755,115.53,115.44,10.93673587]
[1744344174107,33.6,115.52,115.44,10.93673587]
[1744344174306,33.6,115.52,115.46,8.6677]
[1744344174911,0.06261327,115.5,115.48,0.05502666]
[1744344175110,33.6,115.49,115.48,0.05502666]
[1744344175811,42.2655,115.49,115.48,0.05502666]
[1744344176707,33.6,115.49,115.44,8.6689]
[1744344176908,38.1465,115.49,115.4,46.26983812]
[1744344177115,735.08323587,115.49,115.41,4.33137671]
[1744344177310,735.08323587,115.49,115.4,12.66983812]
[1744344177614,8.6692,115.45,115.41,8.6711]
[1744344177806,33.6,115.44,115.43,0.06243398]
[1744344179116,42.2692,115.44,115.43,0.06243398]
[1744344179309,44.53673587,115.44,115.35,10.93673587]
[1744344179508,2.1746,115.43,115.36,4.33763351]
[1744344179713,8.6719,115.41,115.38,8.6733]
[1744344179911,8.6719,115.41,115.37,4.33763351]
[1744344179912,33.6,115.4,115.34,13.4694018]
[1744344180314,8.673,115.39,115.35,8.6755]
[1744344180516,0.05745716,115.38,115.36,0.06198721]
[1744344180718,33.6,115.37,115.36,0.06198721]
[1744344181522,703.405,115.53,115.42,8.6707]
[1744344181728,4.3781,115.5,115.41,10.93673587]
[1744344182128,8.6676,115.47,115.42,8.6702]
[1744344182329,33.62,115.46,115.42,8.6702]
[1744344182526,33.62,115.45,115.42,8.6702]
[1744344182828,33.67746987,115.45,115.43,0.06050035]
[1744344183027,33.62,115.45,115.37,2.3079]
[1744344183328,8.6696,115.44,115.4,8.6718]
[1744344184130,0.06594722,115.43,115.41,0.06592639]
[1744344184330,33.6,115.42,115.41,0.06592639]
[1744344186033,42.2707,115.42,115.41,0.06592639]
[1744344187434,8.6717,115.41,115.36,2.282]
[1744344187631,8.6717,115.41,115.37,4.34481596]
[1744344187828,33.6,115.42,115.37,8.6742]
[1744344188537,8.673,115.39,115.36,8.6749]
[1744344188832,33.6,115.38,115.36,0.06318048]
[1744344189031,33.6,115.37,115.32,2.2296]
[1744344189233,33.6,115.36,115.33,4.34848057]
[1744344189433,33.6,115.36,115.32,2.2296]
[1744344189628,33.6,115.36,115.33,4.34639371]
[1744344189827,33.6,115.36,115.32,2.2296]
[1744344190029,33.6,115.36,115.33,4.34692143]
[1744344190235,0.06493923,115.35,115.34,8.6767]
[1744344191029,0.06493923,115.35,115.33,8.74363843]
[1744344191537,11.0016751,115.35,115.27,10.93673587]
[1744344191831,10.93673587,115.35,115.28,4.34799414]
[1744344192033,8.6791,115.31,115.25,12.4461371]
[1744344192233,33.6,115.3,115.26,4.34958791]
[1744344192422,33.6,115.3,115.25,12.4461371]
[1744344192739,0.05973286,115.29,115.27,8.6814]
[1744344193927,8.74043286,115.29,115.26,0.05642834]
[1744344195132,8.6813,115.28,115.26,0.05642834]
[1744344195430,33.62,115.27,115.19,2.1731]
[1744344195626,33.62,115.27,115.17,2.1544]
[1744344196028,35.7384,115.27,115.21,8.6865]
[1744344196225,35.7384,115.27,115.17,3.66494779]
[1744344196226,8.6849,115.24,115.17,3.66494779]
[1744344196432,33.62,115.23,115.17,3.66494779]
[1744344196633,33.68305001,115.22,115.19,0.06547651]
[1744344197034,33.68305001,115.22,115.17,3.66494779]
[1744344197235,33.68305001,115.22,115.19,0.06131374]
[1744344198034,33.68305001,115.22,115.2,8.6868]
[1744344199339,33.68305001,115.22,115.21,8.6865]
[1744344200942,0.06305001,115.22,115.21,8.6865]
[1744344201141,33.64,115.23,115.22,8.6857]
[1744344202642,0.06506114,115.24,115.21,0.06621449]
[1744344203037,0.06506114,115.24,115.22,8.6851]
[1744344203843,33.64,115.23,115.21,8.75251449]
[1744344208541,33.64,115.23,115.22,8.6857]
[1744344209244,33.64,115.23,115.21,0.06621449]
[1744344210349,33.64,115.23,115.21,8.75251449]
[1744344211349,0.06506114,115.24,115.22,8.6855]
[1744344211543,33.70506114,115.24,115.22,8.6855]
[1744344211747,33.70506114,115.24,115.21,0.06621449]
[1744344212350,33.70506114,115.24,115.21,8.75231449]
[1744344217355,33.70506114,115.24,115.21,0.06621449]
[1744344217651,8.6854,115.23,115.21,0.06621449]
[1744344217855,33.70506114,115.24,115.21,0.06621449]
[1744344218153,35.93526114,115.24,115.21,0.06621449]
[1744344218453,8.6856,115.23,115.21,0.06621449]
[1744344218951,44.61976114,115.24,115.21,0.06621449]
[1744344219156,42.38956114,115.24,115.21,8.75231449]
[1744344219864,33.64,115.23,115.22,8.6855]
[1744344220756,0.06506114,115.24,115.21,11.04024887]
[1744344221355,33.64,115.26,115.25,8.6835]
[1744344221745,33.64,115.29,115.25,10.97403438]
[1744344222351,0.06357263,115.28,115.27,8.6807]
[1744344224459,686.48,115.32,115.29,8.6792]
[1744344224661,33.64,115.31,115.29,8.6792]
[1744344225152,33.64,115.31,115.3,8.6789]
[1744344228862,0.05602701,115.32,115.29,0.06529467]
[1744344229063,0.05602701,115.32,115.3,4.35994515]
[1744344229261,0.05602701,115.32,115.29,0.06529467]
[1744344229463,0.05602701,115.32,115.3,4.36403159]
[1744344229766,0.05602701,115.32,115.29,0.06529467]
[1744344229968,0.05602701,115.32,115.3,4.36400472]
[1744344230161,0.05602701,115.32,115.29,0.06529467]
[1744344230365,33.62,115.31,115.29,0.06529467]
[1744344230563,8.6789,115.3,115.29,0.06529467]
[1744344231968,35.7607,115.31,115.29,0.06529467]
[1744344232967,8.6789,115.3,115.29,0.06529467]
[1744344233366,35.7607,115.31,115.29,0.06529467]
[1744344233568,44.4394,115.31,115.29,0.06529467]
[1744344235167,35.7607,115.31,115.29,8.74469467]
[1744344235370,33.62,115.31,115.29,0.06529467]
[1744344235573,33.62,115.31,115.3,4.38793902]
[1744344236274,33.62,115.31,115.29,0.06529467]
[1744344236473,0.05602701,115.32,115.3,4.38751719]
[1744344236675,0.05602701,115.32,115.29,0.06529467]
[1744344236866,0.05602701,115.32,115.3,13.06843188]
[1744344237171,0.05602701,115.32,115.3,8.6786]
[1744344237475,0.05602701,115.32,115.29,8.74489467]
[1744344237667,42.35362701,115.32,115.29,8.74489467]
[1744344237868,33.67602701,115.32,115.29,8.74489467]
[1744344238069,33.67602701,115.32,115.29,0.06529467]
[1744344238481,33.67602701,115.32,115.3,4.38898143]
[1744344238772,33.67602701,115.32,115.3,8.6785]
[1744344239174,33.67602701,115.32,115.29,0.06529467]
[1744344239471,33.67602701,115.32,115.3,4.38889025]
[1744344239672,33.67602701,115.32,115.29,0.06529467]
[1744344239875,33.67602701,115.32,115.3,13.06675934]
[1744344240067,33.67602701,115.32,115.3,8.6789]
[1744344241278,33.67602701,115.32,115.29,0.06529467]
[1744344241479,33.67602701,115.32,115.3,4.3875243]
[1744344241675,33.67602701,115.32,115.3,8.6783]
[1744344243177,33.67602701,115.32,115.29,8.74459467]
[1744344243880,33.67602701,115.32,115.3,8.6788]
[1744344244281,33.67602701,115.32,115.29,0.06529467]
[1744344244474,0.05602701,115.32,115.3,4.38512031]
[1744344244674,33.6,115.35,115.31,23.7273784]
[1744344244983,33.6,115.35,115.33,8.6766]
[1744344245175,33.6,115.35,115.31,10.97403438]
[1744344245372,33.6,115.35,115.32,4.38291098]
[1744344245573,33.6,115.35,115.34,8.6759]
[1744344245781,33.65611249,115.35,115.32,0.06150242]
[1744344246079,33.65611249,115.35,115.33,13.05852811]
[1744344246274,0.05611249,115.35,115.33,8.6759]
[1744344246474,0.05611249,115.35,115.32,0.06150242]
[1744344246979,0.05611249,115.35,115.33,4.38035664]
[1744344247278,0.05611249,115.35,115.34,8.6759]
[1744344250677,0.05611249,115.35,115.32,0.06150242]
[1744344250981,33.65611249,115.35,115.32,0.06150242]
[1744344251375,33.65611249,115.35,115.32,8.73860242]
[1744344251577,33.65611249,115.35,115.32,0.06150242]
[1744344251974,42.33161249,115.35,115.32,0.06150242]
[1744344256779,33.65611249,115.35,115.32,0.06150242]
[1744344258182,8.6764,115.34,115.32,0.06150242]
[1744344258374,33.65611249,115.35,115.32,0.06150242]
[1744344259281,8.6763,115.34,115.32,0.06150242]
[1744344259482,33.65611249,115.35,115.32,0.06150242]
[1744344261485,8.676,115.34,115.32,0.06150242]
[1744344261883,42.33161249,115.35,115.32,0.06150242]
[1744344262083,33.65611249,115.35,115.32,0.06150242]
[1744344262472,8.6762,115.34,115.32,0.06150242]
[1744344262783,33.65611249,115.35,115.32,0.06150242]
[1744344263382,33.65611249,115.35,115.32,8.73860242]
[1744344263986,42.33171249,115.35,115.32,8.73860242]
[1744344267292,49.34285818,115.35,115.32,8.73860242]
[1744344269503,40.66725818,115.35,115.32,8.73860242]
[1744344269903,49.34285818,115.35,115.32,8.73860242]
[1744344272007,49.34285818,115.35,115.33,4.40761944]
[1744344272309,33.65611249,115.35,115.34,8.6759]
[1744344272606,33.65611249,115.35,115.34,13.08316711]
[1744344273201,33.65611249,115.35,115.34,4.40726711]
[1744344274107,33.65611249,115.35,115.34,13.08316711]
[1744344278609,0.05611249,115.35,115.34,13.08316711]
[1744344279002,0.05611249,115.35,115.34,21.49709306]
[1744344279509,0.05611249,115.35,115.34,21.49925302]
[1744344280707,0.05611249,115.35,115.34,28.51039871]
[1744344284617,0.05611249,115.35,115.34,28.50908548]
[1744344286218,0.05611249,115.35,115.34,12.82203979]
[1744344286519,40.64725818,115.35,115.34,4.40814803]
[1744344286716,40.64725818,115.35,115.32,0.06150242]
[1744344286917,8.676,115.34,115.33,4.40834161]
[1744344288619,8.676,115.34,115.32,0.06150242]
[1744344288822,8.6766,115.33,115.32,0.06150242]
[1744344289022,7.01114569,115.33,115.28,54.85585802]
[1744344289219,33.58,115.32,115.29,12.82611814]
[1744344289421,42.2579,115.32,115.3,12.82611814]
[1744344289620,42.2579,115.32,115.31,4.40971866]
[1744344290119,42.2579,115.32,115.31,4.40948326]
[1744344293025,33.58,115.32,115.31,4.40948326]
[1744344293624,33.58,115.32,115.31,4.40889998]
[1744344293825,33.58,115.32,115.31,12.82306948]
[1744344294427,33.58,115.32,115.31,4.40889998]
[1744344294728,49.26854569,115.32,115.31,4.40889998]
[1744344294928,42.70404569,115.32,115.3,0.06529343]
[1744344295230,8.6782,115.31,115.3,0.06529343]
[1744344298531,44.3705,115.32,115.3,0.06529343]
[1744344298726,42.2576,115.32,115.3,0.06529343]
[1744344299132,33.58,115.32,115.3,7.07643912]
[1744344299332,33.58,115.32,115.31,8.6781]
[1744344301435,0.06441892,115.33,115.32,8.6774]
[1744344301729,0.06441892,115.33,115.32,15.68854569]
[1744344301930,0.06441892,115.33,115.32,24.09884251]
[1744344302431,0.06441892,115.33,115.3,7.07643912]
[1744344302632,0.06441892,115.33,115.31,8.41057357]
[1744344302831,0.06441892,115.33,115.32,24.09909104]
[1744344303435,0.06441892,115.33,115.32,8.6774]
[1744344304034,0.06441892,115.33,115.31,8.6777]
[1744344304337,0.06441892,115.33,115.3,9.29203912]
[1744344304535,8.74131892,115.33,115.3,8.74369343]
[1744344304835,8.74131892,115.33,115.3,0.06529343]
[1744344305236,0.06441892,115.33,115.31,8.6781]
[1744344305423,0.06441892,115.33,115.31,7.01114569]
[1744344305624,0.06441892,115.33,115.32,15.68854569]
[1744344305831,33.56,115.36,115.32,15.42267336]
[1744344306126,33.56,115.36,115.34,7.01114569]
[1744344306835,33.56,115.36,115.34,7.06964274]
[1744344307035,33.61498342,115.36,115.34,7.06964274]
[1744344307238,33.61498342,115.36,115.35,4.29555882]
[1744344308032,33.61498342,115.36,115.34,8.73399705]
[1744344308838,42.28938342,115.36,115.34,0.05849705]
[1744344309433,33.61498342,115.36,115.34,8.73429705]
[1744344310136,0.05498342,115.36,115.35,8.6751]
[1744344310327,0.05498342,115.36,115.35,12.97053965]
[1744344311234,0.05498342,115.36,115.35,21.37831425]
[1744344311635,2.2788,115.41,115.38,8.6722]
[1744344311840,33.56,115.41,115.39,11.30488367]
[1744344312139,33.56,115.41,115.4,4.29207417]
[1744344312338,33.56,115.41,115.4,12.96347417]
[1744344312639,33.56,115.41,115.4,21.35837827]
[1744344313335,0.05901444,115.42,115.41,8.6706]
[1744344313538,0.05901444,115.42,115.41,28.35848464]
[1744344314039,0.05901444,115.42,115.41,19.97381986]
[1744344314445,0.05901444,115.42,115.41,28.35039201]
[1744344314738,0.05901444,115.42,115.41,28.35044943]
[1744344315241,0.05901444,115.42,115.41,19.97381986]
[1744344316243,0.05901444,115.42,115.41,28.33440699]
[1744344316744,33.56,115.44,115.43,8.6691]
[1744344316940,33.56,115.44,115.43,15.68024569]
[1744344317440,33.56,115.44,115.43,7.01114569]
[1744344317747,33.56,115.44,115.42,15.68064569]
[1744344317937,33.56,115.44,115.42,15.73854749]
[1744344318133,33.56,115.44,115.42,7.06904749]
[1744344318836,33.56,115.44,115.42,15.73884749]
[1744344319245,33.56,115.44,115.43,8.6691]
[1744344319442,33.56,115.44,115.42,7.06904749]
[1744344319641,33.56,115.44,115.43,7.01114569]
[1744344320542,33.56,115.44,115.43,15.68024569]
[1744344320744,33.56,115.44,115.42,7.06904749]
[1744344321443,33.56,115.44,115.42,0.0579018]
[1744344322842,33.56,115.44,115.42,7.06904749]
[1744344324046,33.56,115.44,115.42,15.73874749]
[1744344326948,33.56,115.44,115.43,8.6691]
[1744344327450,33.56,115.44,115.43,15.68024569]
[1744344329651,33.56,115.44,115.43,8.6691]
[1744344330451,33.56,115.44,115.42,15.73834749]
[1744344331448,0.06022365,115.45,115.42,15.73834749]
[1744344332652,0.06022365,115.45,115.43,8.6691]
[1744344334460,0.06022365,115.45,115.44,8.6684]
[1744344336559,0.06022365,115.45,115.44,15.67954569]
[1744344338867,0.06022365,115.45,115.44,8.6684]
[1744344339067,0.06022365,115.45,115.42,0.0579018]
[1744344339369,0.06022365,115.45,115.42,7.06904749]
[1744344340270,8.72812365,115.45,115.43,8.6691]
[1744344341769,0.06022365,115.45,115.43,8.6691]
[1744344343372,0.06022365,115.45,115.44,8.6684]
[1744344343569,0.06022365,115.45,115.44,15.67954569]
[1744344350574,10.8907,115.48,115.44,15.67954569]
[1744344350575,33.5,115.49,115.47,8.6662]
[1744344351474,33.5,115.49,115.46,7.01114569]
[1744344351674,33.56323036,115.49,115.47,0.06212512]
[1744344352174,40.57437605,115.49,115.47,0.06212512]
[1744344353373,8.6659,115.48,115.47,0.06212512]
[1744344357077,42.22823036,115.49,115.47,4.33482183]
[1744344357377,42.22823036,115.49,115.47,0.06212512]
[1744344357875,8.6654,115.48,115.47,0.06212512]
[1744344358076,8.6654,115.48,115.47,4.33564111]
[1744344365690,8.6654,115.48,115.47,0.06212512]
[1744344366183,7.01114569,115.48,115.43,8.6686]
[1744344366386,7.01114569,115.47,115.44,4.26977229]